Cogmind - Beta 9.4 @@@ ROGUE MODE // 2020.02.23 @ 15:01:23 Player: OccultOnion Result: Destroyed by Y-45 Defender with Beam Rifle Performance ------------- Evolutions (1) 500 Regions Visited (2) 400 Robots Destroyed (15) 75 Value Destroyed (410) 410 Prototype IDs (0) 0 Alien Tech Used (0) 0 Bonus (0) 0 TOTAL SCORE: 1385 Bonus ------- None Cogmind --------- Core Integrity 0/400 Matter 272/300 Energy 100/100 System Corruption 0% Temperature Cool (9) Movement Core (550) Ox10 Location -9/Materials Parts ------- > --- POWER (1) -------- (None) > --- PROPULSION (3) --- (None) > --- UTILITY (3) ------ High-capacity Storage Unit Seismic Analyzer > --- WEAPON (2) ------- (None) > --- INVENTORY (12) --- Ion Engine Ion Engine Medium Storage Unit Light Armor Plating Mini Grenade Launcher Mini Grenade Launcher Peak State ------------ > --- POWER ------------ Light Ion Engine > --- PROPULSION ------- Aluminum Leg Aluminum Leg Aluminum Leg > --- UTILITY ---------- High-capacity Storage Unit Terrain Scanner Seismic Analyzer > --- WEAPON ----------- Assault Rifle Heavy Assault Rifle > --- INVENTORY -------- Ion Engine Ion Engine Light Treads Light Treads Wheel Medium Storage Unit Mini Grenade Launcher Mini Grenade Launcher [Rating: 11] Favorites ----------- Power Light Ion Engine Engine Light Ion Engine Propulsion Aluminum Leg Treads Light Treads Leg Aluminum Leg Wheel Wheel Utility High-capacity Storage Unit Device Improved Terrain Scanner Storage High-capacity Storage Unit Processor Seismic Analyzer Weapon Light Assault Rifle Energy Gun Small Laser Ballistic Gun Light Assault Rifle Build | -11 -10 -9 ------- Run | Scr Mat Mat Slots Evolved 2 | . . 2 Power . | . . . Propulsion 1 | . . 1 Utility 1 | . . 1 Weapon . | . . . Parts Attached 22 | 8 4 10 Power 2 | 1 1 . Engine 2 | 1 1 . Core . | . . . Reactor . | . . . Propulsion 9 | 3 . 6 Treads 2 | . . 2 Leg 5 | 2 . 3 Wheel 2 | 1 . 1 Hover . | . . . Flight . | . . . Utility 5 | 2 1 2 Device 2 | 1 . 1 Storage 2 | 1 1 . Processor 1 | . . 1 Hackware . | . . . Protection . | . . . Artifact . | . . . Weapon 6 | 2 2 2 Energy Gun 2 | 1 1 . Energy Cannon . | . . . Ballistic Gun 4 | 1 1 2 Ballistic Cannon . | . . . Launcher . | . . . Special Weapon . | . . . Impact Weapon . | . . . Slashing Weapon . | . . . Piercing Weapon . | . . . Special Melee Weapon . | . . . Unidentified Prototypes . | . . . Parts Lost 18 | . 5 13 Power 2 | . 1 1 Propulsion 8 | . . 8 Utility 2 | . 1 1 Weapon 6 | . 3 3 Highest Loss Streak 7 | . 2 7 Average Slot Usage (%) 81 | . 88 74 Engine 10 | . 12 8 Treads 2 | . . 5 Leg 21 | . 28 15 Wheel 1 | . . 3 Device 6 | . 8 5 Storage 12 | . 14 11 Processor 4 | . . 8 Energy Gun 6 | . 11 1 Ballistic Gun 14 | . 13 14 Naked Turns . | . . . Heaviest Build 41 | 10 38 41 Greatest Support 40 | 20 20 40 Greatest Overweight (x) 11 | 1 1 11 Average Overweight (x) 1 | . . 2 Largest Inventory Capacity 12 | 6 12 12 Average Capacity 11 | 5 11 12 Most Carried 11 | 6 11 11 Average Carried 7 | 3 8 7 Final Capacity 12 | 6 12 12 Final Carried 11 | 6 11 6 Class Distribution -------------------- 80% | Mutant 19% | Scavenger-Mutant Dominant Class ---------------- Mutant | -10/Materials Mutant | -9/Materials Resources | -11 -10 -9 ----------- Run | Scr Mat Mat Matter Collected 473 | 245 90 138 Remotely . | . . . Salvage Created 517 | 10 328 179 Parts 34 | 4 19 11 Haulers Intercepted . | . . . Recyclers Shooed 2 | . . 2 Parts Field Recycled . | . . . Retrieved Matter . | . . . Parts Self-Destructed . | . . . Prevented . | . . . Kills | -11 -10 -9 ------- Run | Scr Mat Mat Combat Hostiles Destroyed 12 | . 6 6 Guns 12 | . 6 6 Classes Destroyed 5 | 1 2 2 Tunneler 2 | 1 1 . Recycler 1 | . 1 . Swarmer 3 | . . 3 Grunt 8 | . 6 2 Sentry 1 | . . 1 Best Kill Streak 4 | 1 4 2 Combat Bots Only 4 | . 4 2 Max Kills in Single Turn 2 | 1 2 1 Gunslinging 1 | . 1 . Exploded . | . . . Melee . | . . . Uniques/NPCs Destroyed . | . . . Combat | -11 -10 -9 -------- Run | Scr Mat Mat Damage Taken 1855 | . 513 1342 Core 448 | . 46 402 Absorbed by Shields . | . . . Core Remaining (%) 90 | 100 81 . Volleys Fired 58 | 1 29 28 Largest 2 | 2 2 2 Hottest 60 | 60 60 60 Shots Fired 102 | 2 52 48 Gun 102 | 2 52 48 Cannon . | . . . Launcher . | . . . Special . | . . . Kinetic 77 | 1 30 46 Thermal 13 | 1 12 . Explosive . | . . . Electromagnetic 12 | . 10 2 Robot Hit Streak 9 | . 6 9 Robot Miss Streak 5 | 2 5 4 Penetration Max . | . . . Secondary Targets 2 | . 1 1 Max Gunslinging Chain 1 | . 1 1 Shots Hit Robots 63 | . 35 28 Core Hits 27 | 1 16 10 Critical Hits 1 | 1 . . Critical Kills 1 | 1 . . Critical Parts Destroyed . | . . . Melee Attacks . | . . . Impact . | . . . Slashing . | . . . Piercing . | . . . Sneak Attacks . | . . . Combat Hostiles . | . . . Follow-up Attacks . | . . . Damage Inflicted 766 | 10 383 373 Guns 672 | 10 316 346 Cannons . | . . . Explosions 67 | . 67 . Melee . | . . . Ramming 27 | . . 27 Kinetic 473 | 10 137 326 Thermal 122 | . 122 . Explosive . | . . . Electromagnetic 144 | . 124 20 Impact . | . . . Slashing . | . . . Piercing . | . . . Highest Corruption 2 | . 2 . Average Corruption 2 | . 2 . Corruption Purged . | . . . Effects 3 | . 3 . Energy Discharges 1 | . 1 . Targeting Errors 2 | . 2 . Overload Shots . | . . . Overflow Damage 12 | . 12 . Projectiles . | . . . Explosions 12 | . 12 . Melee . | . . . Knockbacks . | . . . Impact . | . . . Kinetic . | . . . Secondary . | . . . Self-Inflicted Damage 93 | . 80 13 Shots 3 | . 3 . Rammed 2 | . . 2 Targets Rammed 2 | . . 2 Kicked . | . . . Crushed . | . . . Highest Temperature 138 | 20 138 6 Average Temperature 44 | 15 47 4 Received Heat Transfer 870 | . 240 630 Siege Activations . | . . . Robots Corrupted . | . . . Combat Hostiles . | . . . Parts Fried . | . . . Impact Corruptions . | . . . Robots Melted . | . . . Combat Hostiles . | . . . Parts Melted . | . . . Heat Transferred 250 | . 250 . Parts Sabotaged . | . . . Parts Stolen . | . . . Parts Stripped . | . . . Power Chain Reactions 1 | . 1 . Missiles Intercepted . | . . . Alert | -11 -10 -9 ------- Run | Scr Mat Mat Peak Influence 203 | 5 203 167 Average Influence 72 | 2 62 98 Maximum Alert Level 1 | . 1 . Low Security (%) 95 | 100 89 100 Level 1 4 | . 10 . Level 2 . | . . . Level 3 . | . . . Level 4 . | . . . Level 5 . | . . . High Security . | . . . Max Security . | . . . Squads Dispatched 3 | . 2 1 Investigation 1 | . . 1 Extermination . | . . . Reinforcement 2 | . 2 . Assault . | . . . Garrison . | . . . Intercept . | . . . Construction Impeded . | . . . Haulers Reinforced . | . . . Stealth | -11 -10 -9 --------- Run | Scr Mat Mat Distress Signals 1 | . . 1 Communications Jammed . | . . . Distress Signals . | . . . Times Spotted 30 | . 12 18 Peak Tracking Total 9 | . 6 9 Tactical Retreats 2 | . . 2 Traps | -11 -10 -9 ------- Run | Scr Mat Mat Traps Triggered . | . . . Indirectly . | . . . Trap Hack Attempts . | . . . Triggered . | . . . Disarmed . | . . . Reprogrammed . | . . . Reused . | . . . Traps Extracted . | . . . Installed . | . . . Triggered . | . . . Machines | -11 -10 -9 ---------- Run | Scr Mat Mat Machines Disabled 3 | . 3 . Max in Single Turn 2 | . 2 . Machines Sabotaged . | . . . Garrisons Compromised . | . . . Overloaded Fab Kills . | . . . Fab Network Shutdowns . | . . . Hacking | -11 -10 -9 --------- Run | Scr Mat Mat Machines Accessed 4 | . 2 2 Terminals 4 | . 2 2 Fabricators . | . . . Repair Stations . | . . . Recycling Units . | . . . Scanalyzers . | . . . Garrison Access . | . . . Total Hacks 7 | . 4 3 Successful 2 | . 2 . Failed 5 | . 2 3 Catastrophic 2 | . . 2 Database Lockouts . | . . . Manual 3 | . 2 1 Terminals 7 | . 4 3 Fabricators . | . . . Repair Stations . | . . . Recycling Units . | . . . Scanalyzers . | . . . Garrison Access . | . . . Terminal Hacks 2 | . 2 . Unreport Threat 1 | . 1 . Zone Layout 1 | . 1 . Fabricator Hacks . | . . . Repair Station Hacks . | . . . Recycling Unit Hacks . | . . . Scanalyzer . | . . . Garrison Access Hacks . | . . . Unauthorized Hacks . | . . . Terminals . | . . . Fabricators . | . . . Repair Stations . | . . . Recycling Units . | . . . Scanalyzers . | . . . Garrison Access . | . . . Data Cores Recovered . | . . . Used . | . . . Hacking Detections 3 | . 1 2 Full Trace Events 1 | . . 1 Feedback Events . | . . . Feedback Blocked . | . . . Robot Schematics Acquired . | . . . Robots Built . | . . . Matter . | . . . Time . | . . . Total Robot Build Rating . | . . . Part Schematics Acquired . | . . . Parts Built . | . . . Matter . | . . . Time . | . . . Total Part Build Rating . | . . . Parts Repaired . | . . . Time . | . . . Parts Recycled . | . . . Recycled Matter . | . . . Retrieved Matter . | . . . Retrieved Components . | . . . Parts Scanalyzed . | . . . Part Schematics Acquired . | . . . Parts Damaged . | . . . Bothacking | -11 -10 -9 ------------ Run | Scr Mat Mat Used RIF Installer . | . . . Robots Hacked . | . . . Non-combat . | . . . Combat . | . . . Robot Hacks Applied . | . . . Relay Couplers Released . | . . . Robots Rewired . | . . . Allies Hacked . | . . . Hacks Repelled . | . . . Allies | -11 -10 -9 -------- Run | Scr Mat Mat Total Allies . | . . . Largest Group . | . . . Highest-Rated Group . | . . . Highest-Rated Ally . | . . . Total Orders . | . . . Ally Attacks . | . . . Total Damage . | . . . Kills . | . . . Allies Corrupted . | . . . Allies Melted . | . . . Intel | -11 -10 -9 ------- Run | Scr Mat Mat Robot Analysis Total . | . . . Derelict Logs Recovered . | . . . Drone Launches . | . . . Drone Recoveries . | . . . Exploration | -11 -10 -9 ------------- Run | Scr Mat Mat Turns Passed 770 | 85 332 353 Spaces Moved 365 | 55 158 152 Core 14 | 8 . 6 Treads 32 | . . 32 Legs 260 | 43 158 59 Wheels 59 | 4 . 55 Hover . | . . . Flight . | . . . Fastest Speed 50 | 50 120 110 Average Speed 149 | 111 148 163 Slowest Speed 600 | 120 150 600 Overloaded Moves . | . . . Propulsion Burnouts . | . . . Robots Hopped . | . . . Cave-ins Triggered . | . . . Exploration Rate (%) 18 | 3 37 16 Regions Visited 2 Branch Regions . Pre-discovered Areas . | . . . Known Exits Taken . | . . . Unknown Exits Taken 2 | 1 1 . Scrap Searched . | . . . Spaces Dug . | . . . Terrain Destroyed 3 | . 3 . Melee . | . . . Projectile . | . . . AOE 3 | . 3 . Actions | -11 -10 -9 --------- Run | Scr Mat Mat Total 495 | 76 210 209 Wait 20 | . 8 12 Move 363 | 54 157 152 Hop . | . . . Pick Up 28 | 13 10 5 Fast Attach . | . . . Attach 20 | 7 3 10 Detach . | . . . Swap 2 | 1 1 . Drop 2 | . 2 . Fire 58 | 1 29 28 Melee . | . . . Ram 2 | . . 2 Kick . | . . . Crush . | . . . Escape Stasis . | . . . Rewire . | . . . Trap . | . . . Miscellaneous . | . . . Route ------- -11/Scrapyard -10/Materials -9/Materials (discovered 1 exit: [*Mat]) History --------- Turn | Location | Event 9 | -11/Scrapyard | Discovered new exit (range 15) 86 | -11/Scrapyard | Entered Materials 308 | -10/Materials | Discovered new exit (range 16) 313 | -10/Materials | Build established: Mutant 418 | -10/Materials | Entered another Materials area 418 | -9/Materials | Evolved 2 slots: Propulsion x1, Utility x1 489 | -9/Materials | Lost 3 parts (2n1w) 726 | -9/Materials | Lost 7 parts (1p3n1u2w) 726 | -9/Materials | Core integrity fell below 50% 766 | -9/Materials | Core integrity fell below 20% 767 | -9/Materials | Discovered new exit (range 6) 771 | -9/Materials | Destroyed by Y-45 Defender with Beam Rifle Last Messages --------------- 00621_ Acquired 39 matter. 00629_ Slammed into R-06 Scavenger. 00634_ Aluminum Leg destroyed. 00669_ Connecting with Terminal... 00669_ K-01 Serf cleans the Electrolysis Chamber. 00678_ K-01 Serf collects debris. 00681_ Hvy. Assault Rifle destroyed. 00682_ K-01 Serf collects debris. 00683_ Lgt. Ion Engine destroyed. 00683_ Slammed into G-47 Trooper. 00685_ Wheel destroyed. 00685_ K-01 Serf collects debris. 00690_ Terrain Scanner destroyed. 00695_ K-01 Serf collects debris. 00695_ Assault Rifle destroyed. 00737_ Lgt. Treads destroyed. 00737_ K-01 Serf collects debris. 00752_ W-16 Scout sends out distress signal. 00756_ Lgt. Treads destroyed. 00767_ EXIT=FOUND Map ----- +----------------------------------------------------+ | ??????????????????????????????????? | | ??????????????????????????????????? | | ??????????????????????????????????? | | ??????????????????????????????????? | | ??????????????????????????????????? | | ??????????????????????????????????? | | ??????????????????????????????????? | | ??????????????????????????????????? | | ??????????????????????????????????? | | ????????? ????????????????????????? | | ??????# ???????????????????????? | | ??????? ????????????????????? ?? | | ??????? ???????????????????????? | | ???????# ???????????? ????????? | | ?????### ???????????# ?????? ?? | | ?????? # ???????????# #??????#? | | ???????+ ???????????# #???????? | | ???????#w #??????????# +???????? | | ???????# #??????????# #???????? | | ??????## ##?????????# #????? ?? | | ??????# ########### #???????# | | ??????# g #????#??? | | ??????# Yg #???#??#? | | ??????# gg #???????? | | ??????# ###/####### #???????? | | ??????## @## # #?????### | | ???????# ## # #?????# | | ???????# ## # ####### | | ???????+ ## # | | ???????# ## # | | ???????# < ## / | | ???????# ## ### ####### | | ???????###### #?# #?????# | | ????????????###########?# #?????### | | ????????????????????????#+#???????? | | ??????????????????????????????????? | | ??????????????????????????????????? | | ??????????????????????????????????? | | ??????????????????????????????????? | | ??????????????????????????????????? | | ??????????????????????????????????? | | ??????????????????????????????????? | | | | | | | | | | | | | | | | | +----------------------------------------------------+ Best States ------------- Heat Dissipation 28 Energy Generation 10 Energy Capacity 125 Matter Stores 300 Matter Capacity 300 Sight Range 16 Terrain Scan Range 16 Terrain Scan Density 60 Evasion (%) 40 Recoil Reduction 2 Item Schematics ----------------- None Robot Schematics ------------------ None Fabricated ------------ Nothing Alien Tech Used ----------------- None Achievements -------------- None Challenges ------------ None Game ------ Seed SurgeAluminumCarapace Manual? 0 Play Time 00:08:26 Cumulative 38.9 hours Start 2020.02.23 @ 14:55:44 End 2020.02.23 @ 15:01:23 Sessions 1 Manual Loads 0 Difficulty Rogue Special Mode None Game No. 98 Rogue 98 Adventurer 0 Explorer 0 Win Type - Total 0 Types 0/0/0/0/0/0/0 Lore% 23 Gallery% 42 Achievement% 26 Wizard Run 0 Options --------- ASCII 0 Keyboard 0 Movement Numpad Keybinds 0 Fullscreen 1 Font 18/SmallcapsGlow Map View 76x50 Tactical HUD 1 Map Filters NONE Filters NONE Steam 1 RUN: d2fc887b-b520-4701-90f6-74ea1d537bc4